fUST/lending_fUST_20260430
["ID","MTS","AMOUNT","RATE_DAILY","PERIOD"]
[421367504,1777503032000,-500.0,0.00018894,2]
[421367503,1777503032000,-500.0,0.00018894,2]
[421367512,1777503032000,-2152.69416991,0.00018894,2]
[421367509,1777503032000,-2023.90050164,0.00018894,2]
[421367507,1777503032000,-2023.90050164,0.00018894,2]
[421367554,1777503038000,-549.79364885,0.00018997,2]
[421367555,1777503038000,-156848.17666178,0.00018998,2]
[421367552,1777503038000,-8454.58240049,0.00018897,2]
[421367551,1777503038000,-177102.39006089,0.00018897,2]
[421367544,1777503038000,-442.0,0.00017021,2]
[421367550,1777503038000,-6100.04329361,0.00018897,2]
[421367548,1777503038000,-39758.9418298,0.00018897,2]
[421367546,1777503038000,-5000.0,0.00018895,2]
[421367545,1777503038000,-1387.57123002,0.00018894,2]
[421367557,1777503038000,-603.0,0.00019,2]
[421367549,1777503038000,-2028.97951315,0.00018897,2]
[421367556,1777503038000,-15674.1178605,0.00019,2]
[421367553,1777503038000,-254.63378284,0.00018898,2]
[421367558,1777503038000,-418.0,0.00019,2]
[421367559,1777503038000,-774.0,0.00019,2]
[421367569,1777503038000,-300.0,0.00019376,2]
[421367567,1777503038000,-1863.88638208,0.00019329,2]
[421367566,1777503038000,-203.394,0.00019272,2]
[421367565,1777503038000,-787.68982884,0.00019178,2]
[421367570,1777503038000,-250951.61014929,0.00019404,2]
[421367562,1777503038000,-1863.88638208,0.00019063,2]
[421367564,1777503038000,-300.0,0.00019178,2]
[421367563,1777503038000,-859.3655893,0.00019178,2]
[421367560,1777503038000,-175.0,0.00019,2]
[421367568,1777503038000,-300.0,0.00019376,2]
[421367561,1777503038000,-3126.0,0.00019,2]
[421367591,1777503043000,-990.09236389,0.00019404,2]
[421367603,1777503046000,-603.0,0.00019452,2]
[421367612,1777503046000,-639.66,0.00019798,2]
[421367607,1777503046000,-500.0,0.00019712,2]
[421367609,1777503046000,-269.0,0.00019726,2]
[421367608,1777503046000,-500.0,0.00019719,2]
[421367599,1777503046000,-175.10233486,0.00019434,2]
[421367605,1777503046000,-482.83547454,0.000196,2]
[421367596,1777503046000,-153.0,0.00017021,2]
[421367602,1777503046000,-2230.315306,0.00019434,2]
[421367601,1777503046000,-557.5788265,0.00019434,2]
[421367598,1777503046000,-121807.74365646,0.00019404,2]
[421367600,1777503046000,-461.67526834,0.00019434,2]
[421367597,1777503046000,-1252.14528569,0.00019404,2]
[421367610,1777503046000,-603.0,0.00019726,2]
[421367604,1777503046000,-1863.88638208,0.00019594,2]
[421367615,1777503046000,-1000.0,0.0001988,5]
[421367606,1777503046000,-277.49751189,0.00019618,2]
[421367611,1777503046000,-500.0,0.00019779,2]
[421367629,1777503046000,-242356.31246284,0.0002,2]
[421367625,1777503046000,-1000.0,0.0001998,5]
[421367627,1777503046000,-156.73,0.00019999,2]
[421367626,1777503046000,-2312.83697232,0.00019982,2]
[421367624,1777503046000,-333.75263436,0.00019973,2]
[421367620,1777503046000,-1000.0,0.0001994,5]
[421367622,1777503046000,-1000.0,0.0001996,5]
[421367623,1777503046000,-500.0,0.00019973,2]
[421367621,1777503046000,-11871.23305452,0.0001995,3]
[421367628,1777503046000,-603.0,0.0002,2]
[421367618,1777503046000,-872.9181685,0.00019908,2]
[421367616,1777503046000,-1000.0,0.000199,5]
[421367617,1777503046000,-6425.44343172,0.000199,2]
[421367613,1777503046000,-1769.504599,0.0001986,5]
[421367619,1777503046000,-1000.0,0.0001992,5]
[421367614,1777503046000,-1863.88638208,0.0001986,2]
[421367631,1777503047000,-15630.2,0.0002,2]
[421367630,1777503047000,-426.28855298,0.0002,2]
[421367636,1777503714000,-1000.0,0.00013699,2]
[421367637,1777503737000,-167.58051493,0.0001465,2]
[421367638,1777503761000,-289.24990145,0.000156,2]
[421367639,1777503784000,-197.74500762,0.0001665,2]
[421367640,1777503807000,-206.08357826,0.000156,2]
[421367703,1777504238000,-333.0,0.0001702,2]
[421367702,1777504238000,-300.0,0.0001702,2]
[421367701,1777504238000,-300.0,0.0001702,2]
[421367699,1777504238000,-185.0,0.00016745,2]
[421367697,1777504238000,-206.08357826,0.000162,2]
[421367693,1777504238000,-319.0,0.000157,2]
[421367688,1777504238000,-160.27400448,0.00013699,2]
[421367694,1777504238000,-206.08357826,0.000158,2]
[421367698,1777504238000,-442.0,0.00016745,2]
[421367690,1777504238000,-365.729528,0.00013699,2]
[421367692,1777504238000,-189.12332528,0.00015699,2]
[421367695,1777504238000,-206.08357826,0.000159,2]
[421367696,1777504238000,-206.08357826,0.000161,2]
[421367687,1777504238000,-156.0,0.00013699,2]
[421367689,1777504238000,-634.270472,0.00013699,2]
[421367704,1777504238000,-2211.0,0.00017021,2]
[421367691,1777504238000,-206.08357826,0.000156,2]
[421367700,1777504238000,-160.0,0.00016939,2]
[421367706,1777504238000,-645.0,0.00017021,2]
[421367707,1777504238000,-217.97264609,0.00017699,2]
[421367705,1777504238000,-1409.0,0.00017021,2]
[421367719,1777504238000,-821.0,0.000184,2]
[421367718,1777504238000,-180.34309153,0.000184,2]
[421367717,1777504238000,-205.65930393,0.000184,2]
[421367716,1777504238000,-1000.0,0.00018206,2]
[421367722,1777504238000,-264938.07410772,0.00018694,2]
[421367714,1777504238000,-191.59195751,0.000182,2]
[421367715,1777504238000,-180.34309153,0.000182,2]
[421367720,1777504238000,-1261.24199941,0.00018594,2]
[421367721,1777504238000,-1619.76547354,0.00018594,2]
[421367713,1777504238000,-205.65930393,0.000182,2]
[421367709,1777504238000,-205.65930393,0.00018,2]
[421367708,1777504238000,-160.0,0.00017937,2]
[421367723,1777504238000,-4390.78716792,0.00018694,2]
[421367710,1777504238000,-191.59195751,0.00018,2]
[421367711,1777504238000,-246.80353575,0.00018,2]
[421367712,1777504238000,-180.34309153,0.00018,2]
[421367724,1777504239000,-478.85715799,0.00018694,2]
[421367728,1777504240000,-2284.60625744,0.00018694,2]
[421367750,1777504243000,-2244.0,0.00018694,2]
[421367754,1777504243000,-78198.86173871,0.00018694,2]
[421367752,1777504243000,-431.83675393,0.00018694,2]
[421367759,1777504246000,-300.0,0.00018694,2]
[421367760,1777504246000,-22951.52110578,0.00018694,2]
[421367765,1777504246000,-1261.2419994,0.00018921,2]
[421367766,1777504246000,-1261.2419994,0.00019247,2]
[421367767,1777504246000,-209.25164178,0.00019304,2]
[421367768,1777504246000,-1178.72420008,0.00019401,2]
[421367771,1777504246000,-1619.76547347,0.00019478,2]
[421367769,1777504246000,-194.597,0.00019404,2]
[421367770,1777504246000,-18135.16716614,0.00019404,2]
[421367761,1777504246000,-13797.10766223,0.00018694,2]
[421367763,1777504246000,-251.51,0.00018793,2]
[421367762,1777504246000,-500.0,0.00018793,2]
[421367772,1777504246000,-1261.2419994,0.00019574,2]
[421367774,1777504246000,-246.8219669,0.00019699,2]
[421367780,1777504246000,-197.134114,0.00019918,2]
[421367777,1777504246000,-20000.0,0.0001988,4]
[421367773,1777504246000,-532.42314775,0.000196,2]
[421367776,1777504246000,-185.0,0.00019745,2]
[421367775,1777504246000,-442.0,0.00019745,2]
[421367779,1777504246000,-1261.2419994,0.000199,2]
[421367778,1777504246000,-20000.0,0.000199,2]
[421367764,1777504246000,-2150.738,0.00018853,2]
[421367783,1777504247000,-23214.03852385,0.0002,2]
[421367781,1777504247000,-20000.0,0.0001998,3]
[421367782,1777504247000,-29341.337627,0.0001998,5]
[421367785,1777504302000,15000.0,0.00015,120]
[421367786,1777504305000,1500.0,0.0001,30]
[421367787,1777504396000,10000.0,0.00021918,120]
[421367788,1777504410000,200.0,0.00019375,120]
[421367789,1777504412000,5000.0,0.00021918,120]
[421367815,1777505432000,-176.28876025,0.000159,2]
[421367808,1777505432000,-561.85557731,0.00013699,2]
[421367810,1777505432000,-281.0,0.00013699,2]
[421367813,1777505432000,-176.28876025,0.000156,2]
[421367816,1777505432000,-211.80250396,0.00015937,2]
[421367811,1777505432000,-51.81967495,0.00013937,2]
[421367809,1777505432000,-438.14442269,0.00013699,2]
[421367814,1777505432000,-176.28876025,0.000158,2]
[421367812,1777505432000,-127.67397247,0.00013937,2]
[421367819,1777505432000,-195.0,0.00017776,2]
[421367826,1777505432000,-216.41170984,0.00018,2]
[421367818,1777505432000,-160.0,0.00017763,2]
[421367821,1777505432000,-244.11136049,0.00017937,2]
[421367820,1777505432000,-160.0,0.00017777,2]
[421367822,1777505432000,-1199.0,0.00017999,2]
[421367825,1777505432000,-191.36413843,0.00018,2]
[421367823,1777505432000,-300.0,0.00017999,2]
[421367828,1777505432000,-199.4403227,0.00018,2]
[421367829,1777505432000,-166.3574114,0.00018,2]
[421367824,1777505432000,-166.66666666,0.00018,2]
[421367827,1777505432000,-164.52744315,0.00018,2]
[421367817,1777505432000,-1000.0,0.00017025,2]
[421367860,1777505443000,-1338.254,0.0001708,2]
[421367861,1777505443000,-34.18144968,0.00018,2]
[421367862,1777505443000,-166.66666666,0.000182,2]
[421367874,1777505444000,-500.0,0.00018592,2]
[421367883,1777505444000,-2150.738,0.00018928,2]
[421367885,1777505444000,-158.0,0.00019,2]
[421367888,1777505444000,-500.0,0.00019475,2]
[421367884,1777505444000,-218.57863541,0.0001896,2]
[421367889,1777505444000,-500.0,0.00019475,2]
[421367881,1777505444000,-174.75242141,0.00018928,2]
[421367882,1777505444000,-537.6845,0.00018928,2]
[421367879,1777505444000,-1214.82410512,0.00018828,2]
[421367870,1777505444000,-200.53886108,0.000184,2]
[421367875,1777505444000,-500.0,0.00018693,2]
[421367878,1777505444000,-1000.0,0.000188,3]
[421367871,1777505444000,-183.57641765,0.00018575,2]
[421367872,1777505444000,-183.57641763,0.00018575,2]
[421367873,1777505444000,-183.57641763,0.00018575,2]
[421367868,1777505444000,-164.52744315,0.000184,2]
[421367869,1777505444000,-199.4403227,0.000184,2]
[421367887,1777505444000,-500.0,0.00019475,2]
[421367877,1777505444000,-1000.0,0.000188,2]
[421367866,1777505444000,-200.53886108,0.000182,2]
[421367867,1777505444000,-166.66666666,0.000184,2]
[421367863,1777505444000,-216.41170984,0.000182,2]
[421367864,1777505444000,-164.52744315,0.000182,2]
[421367876,1777505444000,-366.00581541,0.00018693,3]
[421367880,1777505444000,-445.202766,0.00018928,2]
[421367865,1777505444000,-199.4403227,0.000182,2]
[421367890,1777505444000,-167.96905846,0.00019475,2]
[421367886,1777505444000,-167.0,0.00019,2]
[421367914,1777505444000,-1214.8241051,0.00019676,2]
[421367911,1777505444000,-557.5788265,0.00019476,2]
[421367915,1777505444000,-1535.46903291,0.000198,4]
[421367913,1777505444000,-354.94876516,0.000196,2]
[421367909,1777505444000,-191.809,0.00019476,2]
[421367910,1777505444000,-461.67526834,0.00019476,2]
[421367908,1777505444000,-406.17348548,0.00019475,2]
[421367907,1777505444000,-31.07851261,0.00019475,2]
[421367906,1777505444000,-500.0,0.00019475,2]
[421367894,1777505444000,-500.0,0.00019475,2]
[421367903,1777505444000,-500.0,0.00019475,2]
[421367912,1777505444000,-2230.315306,0.00019476,2]
[421367905,1777505444000,-500.0,0.00019475,2]
[421367892,1777505444000,-500.0,0.00019475,2]
[421367891,1777505444000,-500.0,0.00019475,2]
[421367901,1777505444000,-500.0,0.00019475,2]
[421367896,1777505444000,-499.87089615,0.00019475,2]
[421367895,1777505444000,-500.0,0.00019475,2]
[421367893,1777505444000,-500.0,0.00019475,2]
[421367900,1777505444000,-500.0,0.00019475,2]
[421367904,1777505444000,-500.0,0.00019475,2]
[421367897,1777505444000,-500.0,0.00019475,2]
[421367899,1777505444000,-500.0,0.00019475,2]
[421367898,1777505444000,-500.0,0.00019475,2]
[421367902,1777505444000,-500.0,0.00019475,2]
[421367928,1777505446000,-464.53096709,0.000198,4]
[421367927,1777505446000,-236.63251011,0.000196,2]
[421367930,1777505446000,-1002.4,0.000198,6]
[421367931,1777505446000,-7459.63491229,0.00019897,2]
[421367929,1777505446000,-1000.0,0.000198,5]
[421367932,1777505446000,-157.57,0.00019899,2]
[421367934,1777505446000,-276.42021703,0.00019937,2]
[421367936,1777505446000,-2172.33307093,0.00019996,2]
[421367938,1777505446000,-2172.33307093,0.00019996,2]
[421367933,1777505446000,-945.93149955,0.000199,2]
[421367939,1777505446000,-324.70481764,0.00019996,2]
[421367937,1777505446000,-233.68520056,0.00019996,2]
[421367935,1777505446000,-500.0,0.00019996,2]
[421367941,1777505447000,-2047.16187421,0.00019996,2]
[421367943,1777505447000,-1626.63440494,0.00019996,2]
[421367942,1777505447000,-125.17119672,0.00019996,2]
[421367944,1777505447000,-545.69866599,0.00019996,2]
[421367948,1777505447000,-2172.33307093,0.00019996,2]
[421367940,1777505447000,-2172.33307093,0.00019996,2]
[421367945,1777505447000,-596.66305241,0.00019996,2]
[421367947,1777505447000,-2172.33307093,0.00019996,2]
[421367946,1777505447000,-1575.67001852,0.00019996,2]
[421367954,1777505447000,-2172.33307093,0.00019996,2]
[421367951,1777505447000,-2172.33307093,0.00019996,2]
[421367952,1777505447000,-2172.33307093,0.00019996,2]
[421367950,1777505447000,-2172.33307093,0.00019996,2]
[421367953,1777505447000,-2172.33307093,0.00019996,2]
[421367956,1777505447000,-2172.33307093,0.00019996,2]
[421367955,1777505447000,-2172.33307093,0.00019996,2]
[421367958,1777505447000,-8453.925859,0.0002,2]
[421367957,1777505447000,-32485.51222198,0.0002,2]
[421367949,1777505447000,-2172.33307093,0.00019996,2]
[421367959,1777505514000,-209.982136,0.00013599,2]
[421367960,1777505879000,500.0,0.00021918,120]
[421367961,1777505973000,1012.8022177,0.00021918,120]
[421367964,1777506377000,200.3714212,0.000219,120]
[421368001,1777506631000,-500.0,0.00018827,2]
[421368000,1777506631000,-500.0,0.00018827,2]
[421367998,1777506631000,-500.0,0.00018826,2]
[421368002,1777506631000,-500.0,0.00018827,2]
[421367999,1777506631000,-500.0,0.00018827,2]
[421367992,1777506631000,-191.55609806,0.000184,2]
[421367997,1777506631000,-500.0,0.00018826,2]
[421367995,1777506631000,-500.0,0.00018826,2]
[421367993,1777506631000,-191.55609806,0.000185,2]
[421368003,1777506631000,-500.0,0.00018827,2]
[421367991,1777506631000,-160.0,0.00018332,2]
[421367978,1777506631000,-209.982136,0.00013499,2]
[421367989,1777506631000,-191.55609806,0.000182,2]
[421367988,1777506631000,-185.0,0.00018152,2]
[421367982,1777506631000,-204.72656956,0.00015498,2]
[421367980,1777506631000,-1000.0,0.00013699,2]
[421367984,1777506631000,-235.95604627,0.00017498,2]
[421367986,1777506631000,-191.55609806,0.00018,2]
[421367985,1777506631000,-1000.0,0.00017522,2]
[421367987,1777506631000,-166.213,0.00018152,2]
[421367977,1777506631000,-173.49709284,0.00013498,2]
[421367975,1777506631000,-159.73,0.00013498,2]
[421368004,1777506631000,-500.0,0.00018827,2]
[421367990,1777506631000,-1356.6550836,0.000182,2]
[421368005,1777506631000,-504.80375681,0.00018827,2]
[421368006,1777506631000,-160.0,0.00019291,2]
[421368007,1777506631000,-195.93,0.00019447,2]
[421368032,1777506631000,-432.49671503,0.00019899,2]
[421368031,1777506631000,-1392.26306455,0.00019899,2]
[421368029,1777506631000,-713.78707673,0.00019899,2]
[421368030,1777506631000,-1110.97270285,0.00019899,2]
[421368027,1777506631000,-1824.75977958,0.00019899,2]
[421368022,1777506631000,-163.57964039,0.00019899,2]
[421368026,1777506631000,-1824.75977958,0.00019899,2]
[421368020,1777506631000,-166.65232179,0.00019898,2]
[421368023,1777506631000,-1222.99326149,0.00019899,2]
[421368024,1777506631000,-601.76651809,0.00019899,2]
[421368028,1777506631000,-1824.75977958,0.00019899,2]
[421368021,1777506631000,-326.36133312,0.00019898,2]
[421368025,1777506631000,-626.64821509,0.00019899,2]
[421368018,1777506631000,-420.28791105,0.00019799,2]
[421368016,1777506631000,-249.99,0.00019726,2]
[421368017,1777506631000,-565.2391144,0.00019799,2]
[421368014,1777506631000,-43.71201418,0.00019726,2]
[421368011,1777506631000,-250.02,0.00019726,2]
[421368015,1777506631000,-206.28798582,0.00019726,2]
[421368009,1777506631000,-189.58,0.00019574,2]
[421368013,1777506631000,-250.0,0.00019726,2]
[421368012,1777506631000,-250.0,0.00019726,2]
[421368010,1777506631000,-157.75500674,0.000196,2]
[421368008,1777506631000,-267.18552298,0.00019498,2]
[421368019,1777506631000,-500.0,0.00019898,2]
[421368035,1777506632000,-566.03623475,0.00019899,2]
[421368036,1777506632000,-1824.75977958,0.00019899,2]
[421368037,1777506632000,-1824.75977958,0.00019899,2]
[421368033,1777506632000,-1824.75977958,0.00019899,2]
[421368038,1777506632000,-45.35806682,0.00019899,2]
[421368034,1777506632000,-1258.72354483,0.00019899,2]
[421368055,1777506637000,-1824.75977958,0.00019899,2]
[421368050,1777506637000,-1042.24499326,0.00019873,2]
[421368049,1777506637000,-157.75500674,0.000196,2]
[421368053,1777506637000,-1824.75977958,0.00019899,2]
[421368052,1777506637000,-1779.40171276,0.00019899,2]
[421368051,1777506637000,-1559.0666305,0.00019873,2]
[421368054,1777506637000,-1824.75977958,0.00019899,2]
[421368056,1777506637000,-1824.75977958,0.00019899,2]
[421368068,1777506637000,-1940.88085645,0.00019899,2]
[421368058,1777506637000,-1940.88085647,0.00019899,2]
[421368057,1777506637000,-1824.75977958,0.00019899,2]
[421368061,1777506637000,-1940.88085647,0.00019899,2]
[421368064,1777506637000,-1940.88085647,0.00019899,2]
[421368063,1777506637000,-1940.88085647,0.00019899,2]
[421368067,1777506637000,-1940.88085645,0.00019899,2]
[421368069,1777506637000,-744036.7326383,0.000199,2]
[421368062,1777506637000,-1940.88085647,0.00019899,2]
[421368059,1777506637000,-1940.88085647,0.00019899,2]
[421368060,1777506637000,-1940.88085647,0.00019899,2]
[421368065,1777506637000,-1940.88085647,0.00019899,2]
[421368103,1777506640000,-764.47728457,0.000199,2]
[421368104,1777506640000,-4624.21009678,0.000199,2]
[421368120,1777506642000,-150.0,0.00018152,2]
[421368121,1777506642000,-157.75500675,0.000196,2]
[421368122,1777506642000,-777.03255783,0.000199,2]
[421368123,1777506643000,-1297.21331,0.000199,2]
[421368127,1777506646000,-9995.69343295,0.000199,2]
[421368132,1777506816000,307.9,0.00021917,120]
[421368134,1777507291000,200.0,0.00021095,120]
[421368137,1777507529000,2000.0,0.0002191,120]
[421368140,1777507592000,2000.0,0.0002191,120]
[421368143,1777507639000,2000.0,0.0002191,120]
[421368144,1777507648000,2000.0,0.0002191,120]
[421368145,1777507683000,2000.0,0.0002191,120]
[421368146,1777507698000,2000.0,0.0002191,120]
[421368147,1777507727000,2000.0,0.0002191,120]
[421368148,1777507804000,1443.02,0.0002191,120]
[421368203,1777507840000,-366.54942212,0.00013699,2]
[421368201,1777507840000,-160.0,0.00013687,2]
[421368202,1777507840000,-155.86978821,0.00013693,2]
[421368240,1777507846000,-264.3500414,0.00018575,2]
[421368244,1777507846000,-603.352,0.00019168,2]
[421368235,1777507846000,-202.31,0.00018116,2]
[421368233,1777507846000,-167.75381419,0.00017896,2]
[421368229,1777507846000,-211.98291197,0.00017693,2]
[421368225,1777507846000,-167.75381419,0.00014044,2]
[421368242,1777507846000,-300.0,0.00019167,2]
[421368238,1777507846000,-185.0,0.00018152,2]
[421368227,1777507846000,-183.92635009,0.00015693,2]
[421368237,1777507846000,-202.3,0.00018118,2]
[421368223,1777507846000,-633.45057788,0.00013699,2]
[421368206,1777507846000,6728.0,0.0002191,120]
[421368231,1777507846000,-1000.0,0.00017749,2]
[421368245,1777507846000,-603.352,0.00019168,2]
[421368252,1777507846000,-240.03947385,0.00019693,2]
[421368247,1777507846000,-270.09520186,0.00019168,2]
[421368246,1777507846000,-603.352,0.00019168,2]
[421368260,1777507846000,-1009.69,0.000198,30]
[421368259,1777507846000,-651.6,0.00019799,2]
[421368258,1777507846000,-651.6,0.00019799,2]
[421368256,1777507846000,-651.6,0.00019799,2]
[421368257,1777507846000,-651.6,0.00019799,2]
[421368254,1777507846000,-202.05489831,0.00019736,7]
[421368261,1777507846000,-1327.70814013,0.000198,3]
[421368249,1777507846000,-202.05489831,0.00019404,7]
[421368253,1777507846000,-202.05489831,0.00019736,7]
[421368251,1777507846000,-160.0,0.00019593,2]
[421368250,1777507846000,-202.05489831,0.000195,7]
[421368248,1777507846000,-333.25679814,0.00019168,2]
[421368255,1777507846000,-151.664,0.00019799,2]
[421368262,1777507890000,200.0,0.00021262,120]
[421368264,1777508310000,200.0,0.00021177,120]
[421368276,1777508490000,200.0,0.00020809,120]
[421368291,1777508644000,800.0,0.000219,120]
[421368292,1777508730000,200.0,0.00021453,120]
[421368295,1777508910000,200.0,0.00021469,120]
[421368298,1777508970000,200.0,0.00020625,120]
[421368314,1777509032000,-299.15700718,0.000121,5]
[421368315,1777509032000,-515.6773213,0.000121,5]
[421368345,1777509040000,-1843.32969401,0.00018991,2]
[421368347,1777509040000,-1843.32969401,0.00018991,2]
[421368346,1777509040000,-1843.32969401,0.00018991,2]
[421368348,1777509040000,-1843.32969401,0.00018991,2]
[421368351,1777509040000,-445.202766,0.00018993,2]
[421368349,1777509040000,-1843.32969401,0.00018991,2]
[421368354,1777509040000,-2150.738,0.00018993,2]
[421368355,1777509040000,-500.0,0.00018998,2]
[421368357,1777509040000,-500.0,0.00018998,2]
[421368365,1777509040000,-500.0,0.00018999,2]
[421368361,1777509040000,-257.55294169,0.00018998,2]
[421368352,1777509040000,-537.6845,0.00018993,2]
[421368350,1777509040000,-1843.32969401,0.00018991,2]
[421368353,1777509040000,-537.6845,0.00018993,2]
[421368359,1777509040000,-650.71,0.00018998,2]
[421368358,1777509040000,-500.0,0.00018998,2]
[421368360,1777509040000,-650.71,0.00018998,2]
[421368363,1777509040000,-500.0,0.00018998,2]
[421368362,1777509040000,-500.0,0.00018998,2]
[421368364,1777509040000,-500.0,0.00018998,2]
[421368342,1777509040000,-1843.32969401,0.00018991,2]
[421368356,1777509040000,-500.0,0.00018998,2]
[421368341,1777509040000,-1843.32969401,0.00018991,2]
[421368330,1777509040000,-300.0,0.00018798,2]
[421368335,1777509040000,-438.65375057,0.00018991,2]
[421368366,1777509040000,-500.0,0.00018999,2]
[421368320,1777509040000,-7137.48565034,0.000121,5]
[421368322,1777509040000,-589.0,0.00013449,2]
[421368323,1777509040000,-152.27341773,0.00013549,2]
[421368326,1777509040000,-207.09184811,0.00017549,2]
[421368327,1777509040000,-1000.0,0.00017967,2]
[421368324,1777509040000,-1000.0,0.00013699,2]
[421368325,1777509040000,-179.68263292,0.00015549,2]
[421368328,1777509040000,-160.0,0.00018745,2]
[421368329,1777509040000,-160.0,0.0001876,2]
[421368331,1777509040000,-510.0,0.00018798,2]
[421368321,1777509040000,-386.48509312,0.00013449,2]
[421368344,1777509040000,-1843.32969401,0.00018991,2]
[421368337,1777509040000,-1843.32969401,0.00018991,2]
[421368338,1777509040000,-1843.32969401,0.00018991,2]
[421368334,1777509040000,-224.82511769,0.00018991,2]
[421368340,1777509040000,-1843.32969401,0.00018991,2]
[421368333,1777509040000,-23374.93541907,0.00018799,2]
[421368336,1777509040000,-1843.32969401,0.00018991,2]
[421368339,1777509040000,-1843.32969401,0.00018991,2]
[421368332,1777509040000,-10179.75242117,0.00018799,2]
[421368343,1777509040000,-1843.32969401,0.00018991,2]
[421368368,1777509040000,-500.0,0.00018999,2]
[421368392,1777509040000,-650.71,0.00018999,2]
[421368369,1777509040000,-500.0,0.00018999,2]
[421368394,1777509040000,-650.71,0.00018999,2]
[421368408,1777509040000,-500.0,0.00018999,2]
[421368407,1777509040000,-500.0,0.00018999,2]
[421368406,1777509040000,-500.0,0.00018999,2]
[421368405,1777509040000,-500.0,0.00018999,2]
[421368398,1777509040000,-500.0,0.00018999,2]
[421368409,1777509040000,-500.0,0.00018999,2]
[421368399,1777509040000,-500.0,0.00018999,2]
[421368397,1777509040000,-500.0,0.00018999,2]
[421368404,1777509040000,-500.0,0.00018999,2]
[421368400,1777509040000,-500.0,0.00018999,2]
[421368401,1777509040000,-500.0,0.00018999,2]
[421368402,1777509040000,-500.0,0.00018999,2]
[421368413,1777509040000,-512.89966518,0.00018999,2]
[421368410,1777509040000,-500.0,0.00018999,2]
[421368412,1777509040000,-500.0,0.00018999,2]
[421368414,1777509040000,-500.0,0.00018999,2]
[421368415,1777509040000,-151.0,0.00019,2]
[421368416,1777509040000,-151.0,0.00019,2]
[421368411,1777509040000,-500.0,0.00018999,2]
[421368367,1777509040000,-500.0,0.00018999,2]
[421368393,1777509040000,-650.71,0.00018999,2]
[421368391,1777509040000,-650.71,0.00018999,2]
[421368403,1777509040000,-500.0,0.00018999,2]
[421368396,1777509040000,-650.71,0.00018999,2]
[421368370,1777509040000,-500.0,0.00018999,2]
[421368372,1777509040000,-411.19,0.00018999,2]
[421368378,1777509040000,-500.0,0.00018999,2]
[421368380,1777509040000,-650.71,0.00018999,2]
[421368371,1777509040000,-500.0,0.00018999,2]
[421368379,1777509040000,-500.0,0.00018999,2]
[421368383,1777509040000,-650.71,0.00018999,2]
[421368382,1777509040000,-650.71,0.00018999,2]
[421368375,1777509040000,-500.0,0.00018999,2]
[421368374,1777509040000,-500.0,0.00018999,2]
[421368381,1777509040000,-650.71,0.00018999,2]
[421368389,1777509040000,-650.71,0.00018999,2]
[421368390,1777509040000,-650.71,0.00018999,2]
[421368376,1777509040000,-500.0,0.00018999,2]
[421368385,1777509040000,-650.71,0.00018999,2]
[421368388,1777509040000,-650.71,0.00018999,2]
[421368386,1777509040000,-650.71,0.00018999,2]
[421368395,1777509040000,-650.71,0.00018999,2]
[421368387,1777509040000,-650.71,0.00018999,2]
[421368384,1777509040000,-650.71,0.00018999,2]
[421368377,1777509040000,-500.0,0.00018999,2]
[421368373,1777509040000,-500.0,0.00018999,2]
[421368455,1777509041000,-2230.315306,0.00019541,2]
[421368451,1777509041000,-745.65223616,0.00019488,2]
[421368452,1777509041000,-6267.4666669,0.00019536,2]
[421368454,1777509041000,-557.5788265,0.00019541,2]
[421368453,1777509041000,-461.67526834,0.00019541,2]
[421368450,1777509041000,-198.5,0.00019452,2]
[421368458,1777509041000,-153.13244048,0.00019625,2]